fUSD/lending_fUSD_20260615
["ID","MTS","AMOUNT","RATE_DAILY","PERIOD"]
[425120293,1781531446000,-150.0,0.00027693,7]
[425120242,1781531446000,-150.0,0.00027537,7]
[425120240,1781531446000,-167.89737546,0.0002753,7]
[425120237,1781531446000,-150.0,0.00027516,7]
[425120236,1781531446000,-500.0,0.000275,7]
[425120235,1781531446000,-167.89737546,0.00027499,7]
[425120234,1781531446000,-186.5526394,0.00027499,7]
[425120233,1781531446000,-150.0,0.0002747,7]
[425120238,1781531446000,-150.0,0.0002753,7]
[425120239,1781531446000,-186.5526394,0.0002753,7]
[425120248,1781531446000,-811.5,0.0002755,30]
[425120245,1781531446000,-1881.64,0.0002755,30]
[425120243,1781531446000,-150.0,0.00027549,7]
[425120251,1781531446000,-1096.15,0.0002755,30]
[425120254,1781531446000,-150.0,0.00027559,7]
[425120247,1781531446000,-2948.97,0.0002755,30]
[425120252,1781531446000,-2966.69,0.0002755,30]
[425120244,1781531446000,-571.8,0.0002755,2]
[425120250,1781531446000,-1508.37,0.0002755,30]
[425120253,1781531446000,-150.0,0.00027559,7]
[425120256,1781531446000,-150.0,0.00027575,7]
[425120255,1781531446000,-186.5526394,0.0002756,7]
[425120257,1781531446000,-150.0,0.00027575,7]
[425120258,1781531446000,-571.8,0.0002758,7]
[425120261,1781531446000,-167.89737546,0.00027591,7]
[425120260,1781531446000,-186.5526394,0.00027591,7]
[425120264,1781531446000,-150.0,0.00027605,7]
[425120262,1781531446000,-1939.57,0.00027593,2]
[425120294,1781531446000,-585.829384,0.000277,7]
[425120241,1781531446000,-150.0,0.00027537,7]
[425120296,1781531446000,-585.829384,0.000277,14]
[425120329,1781531446000,-150.0,0.00027803,7]
[425120326,1781531446000,-571.8,0.00027794,30]
[425120325,1781531446000,-1939.57,0.00027789,2]
[425120332,1781531446000,-571.8,0.00027824,2]
[425120341,1781531446000,-437.32,0.00027855,7]
[425120340,1781531446000,-571.8,0.00027855,7]
[425120331,1781531446000,-167.89737546,0.00027803,7]
[425120339,1781531446000,-150.0,0.0002785,7]
[425120333,1781531446000,-437.32,0.00027824,2]
[425120338,1781531446000,-150.0,0.0002785,7]
[425120334,1781531446000,-150.0,0.00027826,7]
[425120336,1781531446000,-186.5526394,0.00027834,7]
[425120328,1781531446000,-1229.87,0.000278,7]
[425120335,1781531446000,-150.0,0.00027826,7]
[425120350,1781531446000,-1096.15,0.00027872,2]
[425120348,1781531446000,-811.5,0.00027872,2]
[425120351,1781531446000,-2966.69,0.00027872,2]
[425120352,1781531446000,-150.0,0.00027884,7]
[425120349,1781531446000,-1508.37,0.00027872,2]
[425120346,1781531446000,-1881.64,0.00027872,2]
[425120344,1781531446000,-150.0,0.00027866,7]
[425120342,1781531446000,-186.5526394,0.00027864,7]
[425120345,1781531446000,-150.0,0.0002787,7]
[425120347,1781531446000,-2948.97,0.00027872,2]
[425120353,1781531446000,-150.0,0.00027884,7]
[425120343,1781531446000,-167.89737546,0.00027864,7]
[425120337,1781531446000,-167.89737546,0.00027834,7]
[425120321,1781531446000,-186.5526394,0.00027773,7]
[425120354,1781531446000,-571.8,0.00027885,30]
[425120319,1781531446000,-150.0,0.00027768,7]
[425120324,1781531446000,-150.0,0.00027786,7]
[425120298,1781531446000,-571.8,0.00027702,30]
[425120297,1781531446000,-591.829384,0.000277,14]
[425120299,1781531446000,-437.32,0.00027702,30]
[425120303,1781531446000,-811.5,0.00027711,7]
[425120305,1781531446000,-1096.15,0.00027711,7]
[425120304,1781531446000,-1508.37,0.00027711,7]
[425120300,1781531446000,-150.0,0.00027707,7]
[425120302,1781531446000,-2948.97,0.00027711,7]
[425120301,1781531446000,-1881.64,0.00027711,7]
[425120311,1781531446000,-437.32,0.00027733,2]
[425120307,1781531446000,-150.0,0.00027712,7]
[425120313,1781531446000,-167.89737546,0.00027742,7]
[425120312,1781531446000,-186.5526394,0.00027742,7]
[425120295,1781531446000,-591.829384,0.000277,7]
[425120316,1781531446000,-310.0,0.0002776,10]
[425120317,1781531446000,-571.8,0.00027763,7]
[425120322,1781531446000,-167.89737546,0.00027773,7]
[425120330,1781531446000,-186.5526394,0.00027803,7]
[425120323,1781531446000,-150.0,0.00027782,7]
[425120327,1781531446000,-437.32,0.00027794,30]
[425120318,1781531446000,-437.32,0.00027763,7]
[425120320,1781531446000,-150.0,0.00027768,7]
[425120314,1781531446000,-150.0,0.00027753,7]
[425120308,1781531446000,-186.5526394,0.00027712,7]
[425120315,1781531446000,-150.0,0.00027753,7]
[425120309,1781531446000,-167.89737546,0.00027712,7]
[425120306,1781531446000,-2966.69,0.00027711,7]
[425120310,1781531446000,-571.8,0.00027733,2]
[425120393,1781531447000,-167.89737546,0.00028016,7]
[425120398,1781531447000,-1508.37,0.00028033,30]
[425120397,1781531447000,-811.5,0.00028033,30]
[425120391,1781531447000,-437.32,0.00028007,2]
[425120387,1781531447000,-300.0,0.00028,20]
[425120390,1781531447000,-571.8,0.00028007,2]
[425120389,1781531447000,-300.0,0.00028,20]
[425120384,1781531447000,-150.0,0.00028,7]
[425120379,1781531447000,-389.25,0.00027978,9]
[425120392,1781531447000,-186.5526394,0.00028016,7]
[425120395,1781531447000,-1881.64,0.00028033,30]
[425120410,1781531447000,-437.32,0.00028068,30]
[425120396,1781531447000,-2948.97,0.00028033,30]
[425120394,1781531447000,-150.0,0.00028024,7]
[425120400,1781531447000,-2966.69,0.00028033,30]
[425120402,1781531447000,-437.32,0.00028038,7]
[425120388,1781531447000,-300.0,0.00028,7]
[425120409,1781531447000,-571.8,0.00028068,30]
[425120403,1781531447000,-150.0,0.00028044,7]
[425120404,1781531447000,-150.0,0.00028044,7]
[425120406,1781531447000,-167.89737546,0.00028046,7]
[425120405,1781531447000,-186.5526394,0.00028046,7]
[425120408,1781531447000,-589.34951672,0.00028064,2]
[425120401,1781531447000,-571.8,0.00028038,7]
[425120407,1781531447000,-150.0,0.00028047,7]
[425120399,1781531447000,-1096.15,0.00028033,30]
[425120383,1781531447000,-150.0,0.00028,7]
[425120376,1781531447000,-437.32,0.00027977,30]
[425120385,1781531447000,-301.89646,0.00028,4]
[425120412,1781531447000,-150.0,0.00028077,7]
[425120360,1781531447000,-588.829384,0.000279,14]
[425120361,1781531447000,-571.8,0.00027916,2]
[425120355,1781531447000,-437.32,0.00027885,30]
[425120365,1781531447000,-150.0,0.00027945,7]
[425120363,1781531447000,-186.5526394,0.00027925,7]
[425120362,1781531447000,-437.32,0.00027916,2]
[425120364,1781531447000,-167.89737546,0.00027925,7]
[425120356,1781531447000,-150.0,0.00027894,7]
[425120358,1781531447000,-167.89737546,0.00027894,7]
[425120357,1781531447000,-186.5526394,0.00027894,7]
[425120359,1781531447000,-588.829384,0.000279,7]
[425120386,1781531447000,-600.0,0.00028,2]
[425120366,1781531447000,-2153.59,0.00027945,2]
[425120368,1781531447000,-437.32,0.00027946,7]
[425120369,1781531447000,-150.0,0.00027947,7]
[425120372,1781531447000,-167.89737546,0.00027955,7]
[425120371,1781531447000,-186.5526394,0.00027955,7]
[425120373,1781531447000,-150.0,0.00027959,7]
[425120375,1781531447000,-571.8,0.00027977,30]
[425120377,1781531447000,-162.7,0.00027978,9]
[425120374,1781531447000,-150.0,0.00027973,2]
[425120378,1781531447000,-196.73,0.00027978,9]
[425120380,1781531447000,-150.0,0.00027986,7]
[425120382,1781531447000,-167.89737546,0.00027986,7]
[425120381,1781531447000,-186.5526394,0.00027986,7]
[425120367,1781531447000,-571.8,0.00027946,7]
[425120370,1781531447000,-150.0,0.00027947,7]
[425120421,1781531447000,-150.0,0.00028115,7]
[425120423,1781531447000,-437.33,0.0002813,7]
[425120440,1781531447000,-167.89737546,0.00028198,30]
[425120439,1781531447000,-186.5526394,0.00028198,30]
[425120441,1781531447000,-264.89760161,0.000282,20]
[425120449,1781531447000,-150.0,0.00028219,2]
[425120451,1781531447000,-150.0,0.00028219,2]
[425120448,1781531447000,-2153.59,0.00028219,2]
[425120450,1781531447000,-150.0,0.00028219,2]
[425120458,1781531447000,-150.0,0.00028219,2]
[425120459,1781531447000,-150.0,0.00028219,2]
[425120457,1781531447000,-150.0,0.00028219,2]
[425120453,1781531447000,-150.0,0.00028219,2]
[425120452,1781531447000,-150.0,0.00028219,2]
[425120438,1781531447000,-2966.69,0.00028194,7]
[425120456,1781531447000,-150.0,0.00028219,2]
[425120461,1781531447000,-150.0,0.00028219,2]
[425120460,1781531447000,-150.0,0.00028219,2]
[425120462,1781531447000,-150.0,0.00028219,2]
[425120463,1781531447000,-150.0,0.00028219,2]
[425120464,1781531447000,-150.0,0.00028219,2]
[425120467,1781531447000,-150.0,0.00028219,2]
[425120465,1781531447000,-150.0,0.00028219,2]
[425120469,1781531447000,-150.0,0.00028219,2]
[425120468,1781531447000,-150.0,0.00028219,2]
[425120466,1781531447000,-150.0,0.00028219,2]
[425120470,1781531447000,-150.0,0.00028219,2]
[425120422,1781531447000,-571.92,0.0002813,7]
[425120454,1781531447000,-150.0,0.00028219,2]
[425120437,1781531447000,-1096.15,0.00028194,7]
[425120455,1781531447000,-150.0,0.00028219,2]
[425120447,1781531447000,-150.0,0.00028202,30]
[425120443,1781531447000,-585.829384,0.000282,7]
[425120413,1781531447000,-167.89737546,0.00028077,7]
[425120411,1781531447000,-150.0,0.00028077,7]
[425120416,1781531447000,-832.24,0.000281,7]
[425120415,1781531447000,-437.32,0.00028099,2]
[425120418,1781531447000,-186.5526394,0.00028107,7]
[425120420,1781531447000,-150.0,0.00028115,7]
[425120419,1781531447000,-167.89737546,0.00028107,7]
[425120417,1781531447000,-150.0,0.00028103,7]
[425120424,1781531447000,-150.0,0.00028136,7]
[425120433,1781531447000,-1881.64,0.00028194,7]
[425120427,1781531447000,-150.0,0.00028141,30]
[425120430,1781531447000,-186.5526394,0.00028168,30]
[425120414,1781531447000,-571.8,0.00028099,2]
[425120445,1781531447000,-585.829384,0.000282,14]
[425120446,1781531447000,-591.829384,0.000282,14]
[425120442,1781531447000,-1229.87,0.000282,7]
[425120444,1781531447000,-591.829384,0.000282,7]
[425120429,1781531447000,-150.0,0.00028168,30]
[425120434,1781531447000,-2948.97,0.00028194,7]
[425120436,1781531447000,-1508.37,0.00028194,7]
[425120425,1781531447000,-167.89737546,0.00028137,30]
[425120431,1781531447000,-167.89737546,0.00028168,30]
[425120428,1781531447000,-153.69418748,0.00028159,2]
[425120432,1781531447000,-150.0,0.00028182,30]
[425120426,1781531447000,-150.0,0.00028141,30]
[425120435,1781531447000,-811.5,0.00028194,7]
[425120516,1781531448000,-150.0,0.00028238,30]
[425120513,1781531448000,-167.89737546,0.00028229,30]
[425120511,1781531448000,-150.0,0.00028224,30]
[425120509,1781531448000,-164.765,0.00028219,30]
[425120506,1781531448000,-536.0,0.00028219,2]
[425120501,1781531448000,-150.0,0.00028219,2]
[425120505,1781531448000,-536.0,0.00028219,2]
[425120508,1781531448000,-191.6975,0.00028219,30]
[425120504,1781531448000,-536.0,0.00028219,2]
[425120503,1781531448000,-536.0,0.00028219,2]
[425120510,1781531448000,-19051.95422814,0.00028223,2]
[425120502,1781531448000,-536.0,0.00028219,2]
[425120507,1781531448000,-549.05936694,0.00028219,2]
[425120514,1781531448000,-150.0,0.00028231,30]
[425120526,1781531448000,-500.0,0.00028309,2]
[425120515,1781531448000,-150.0,0.00028231,30]
[425120517,1781531448000,-150.0,0.00028238,30]
[425120519,1781531448000,-150.0,0.00028259,30]
[425120518,1781531448000,-13043.09,0.00028241,7]
[425120520,1781531448000,-186.5526394,0.00028259,30]
[425120527,1781531448000,-500.771467,0.0002831,2]
[425120521,1781531448000,-167.89737546,0.00028259,30]
[425120528,1781531448000,-66744.76197111,0.0002831,2]
[425120522,1781531448000,-150.0,0.00028261,30]
[425120525,1781531448000,-167.89737546,0.00028289,30]
[425120530,1781531448000,-150.0,0.00028313,30]
[425120523,1781531448000,-458.2,0.00028267,2]
[425120512,1781531448000,-186.5526394,0.00028229,30]
[425120500,1781531448000,-536.0,0.00028219,2]
[425120471,1781531448000,-150.0,0.00028219,2]
[425120497,1781531448000,-536.0,0.00028219,2]
[425120524,1781531448000,-186.5526394,0.00028289,30]
[425120472,1781531448000,-150.0,0.00028219,2]
[425120476,1781531448000,-150.0,0.00028219,2]
[425120477,1781531448000,-245.2777844,0.00028219,2]
[425120475,1781531448000,-150.0,0.00028219,2]
[425120474,1781531448000,-150.0,0.00028219,2]
[425120478,1781531448000,-150.0,0.00028219,2]
[425120473,1781531448000,-250.0,0.00028219,2]
[425120480,1781531448000,-150.0,0.00028219,2]
[425120481,1781531448000,-150.0,0.00028219,2]
[425120479,1781531448000,-150.0,0.00028219,2]
[425120483,1781531448000,-536.0,0.00028219,2]
[425120484,1781531448000,-536.0,0.00028219,2]
[425120482,1781531448000,-536.0,0.00028219,2]
[425120493,1781531448000,-536.0,0.00028219,2]
[425120489,1781531448000,-536.0,0.00028219,2]
[425120485,1781531448000,-536.0,0.00028219,2]
[425120496,1781531448000,-536.0,0.00028219,2]
[425120494,1781531448000,-536.0,0.00028219,2]
[425120490,1781531448000,-536.0,0.00028219,2]
[425120487,1781531448000,-536.0,0.00028219,2]
[425120495,1781531448000,-536.0,0.00028219,2]
[425120486,1781531448000,-150.0,0.00028219,2]
[425120492,1781531448000,-536.0,0.00028219,2]
[425120488,1781531448000,-536.0,0.00028219,2]
[425120491,1781531448000,-536.0,0.00028219,2]
[425120499,1781531448000,-536.0,0.00028219,2]
[425120498,1781531448000,-536.0,0.00028219,2]
[425120531,1781531448000,-186.5526394,0.0002832,30]
[425120535,1781531448000,-150.0,0.00028347,30]
[425120532,1781531448000,-150.0,0.00028335,30]
[425120561,1781531448000,-188.04951609,0.00028482,7]
[425120562,1781531448000,-201.63276584,0.00028482,7]
[425120563,1781531448000,-228.28786179,0.00028482,7]
[425120564,1781531448000,-394.52324252,0.00028482,5]
[425120566,1781531448000,-150.0,0.0002849,30]
[425120568,1781531448000,-311.71954461,0.00028495,7]
[425120571,1781531448000,-379.13,0.000285,20]
[425120581,1781531448000,-1939.57,0.00028571,2]
[425120572,1781531448000,-2004.2953,0.000285,2]
[425120570,1781531448000,-5352.192,0.000285,20]
[425120574,1781531448000,-588.829384,0.000285,7]
[425120582,1781531448000,-150.0,0.00028578,30]
[425120576,1781531448000,-186.5526394,0.00028502,30]
[425120573,1781531448000,-9803.8659,0.000285,2]
[425120579,1781531448000,-167.89737546,0.00028533,30]
[425120578,1781531448000,-186.5526394,0.00028533,30]
[425120575,1781531448000,-588.829384,0.000285,14]
[425120580,1781531448000,-186.5526394,0.00028563,30]
[425120577,1781531448000,-150.0,0.0002853,30]
[425120583,1781531448000,-150.0,0.00028578,30]
[425120584,1781531448000,-150.0,0.00028578,30]
[425120585,1781531448000,-150.0,0.00028578,30]
[425120591,1781531448000,-1229.87,0.000286,7]
[425120587,1781531448000,-150.0,0.00028578,30]
[425120590,1781531448000,-832.24,0.000286,7]
[425120589,1781531448000,-186.5526394,0.00028593,30]
[425120529,1781531448000,-154.79340945,0.0002831,2]
[425120567,1781531448000,-341.82264366,0.0002849,2]
[425120565,1781531448000,-200.03804633,0.00028482,7]
[425120588,1781531448000,-150.0,0.00028578,30]
[425120558,1781531448000,-313.23465251,0.00028482,7]
[425120560,1781531448000,-208.51009773,0.00028482,7]
[425120534,1781531448000,-150.0,0.00028341,30]
[425120544,1781531448000,-241.13,0.000284,7]
[425120533,1781531448000,-150.0,0.00028335,30]
[425120536,1781531448000,-186.5526394,0.0002835,30]
[425120537,1781531448000,-167.89737546,0.0002835,30]
[425120539,1781531448000,-500.0,0.00028356,60]
[425120541,1781531448000,-1939.57,0.00028376,2]
[425120538,1781531448000,-500.0,0.00028356,60]
[425120542,1781531448000,-186.5526394,0.00028381,30]
[425120540,1781531448000,-500.0,0.00028356,60]
[425120543,1781531448000,-167.89737546,0.00028381,30]
[425120547,1781531448000,-150.0,0.0002842,30]
[425120586,1781531448000,-150.0,0.00028578,30]
[425120556,1781531448000,-323.96378846,0.00028476,7]
[425120545,1781531448000,-150.0,0.00028401,30]
[425120559,1781531448000,-392.4974778,0.00028482,7]
[425120555,1781531448000,-167.89737546,0.00028472,30]
[425120551,1781531448000,-167.89737546,0.00028441,30]
[425120546,1781531448000,-186.5526394,0.00028411,30]
[425120554,1781531448000,-186.5526394,0.00028472,30]
[425120550,1781531448000,-186.5526394,0.00028441,30]
[425120552,1781531448000,-150.0,0.00028462,30]
[425120549,1781531448000,-150.0,0.00028433,30]
[425120548,1781531448000,-150.0,0.00028433,30]
[425120569,1781531448000,-150.0,0.00028499,30]
[425120553,1781531448000,-150.0,0.00028462,30]
[425120557,1781531448000,-153.58193724,0.00028476,7]
[425120621,1781531449000,-150.0,0.00028895,30]
[425120624,1781531449000,-503.09,0.000289,14]
[425120616,1781531449000,-674.0,0.00028829,30]
[425120625,1781531449000,-200.0,0.000289,2]
[425120629,1781531449000,-1162.37,0.00028965,5]
[425120628,1781531449000,-1939.56,0.00028963,2]
[425120632,1781531449000,-184.47201474,0.00028973,2]
[425120623,1781531449000,-500.0,0.000289,14]
[425120630,1781531449000,-401.94866761,0.00028973,2]
[425120620,1781531449000,-150.0,0.00028855,2]
[425120622,1781531449000,-504.0,0.000289,2]
[425120635,1781531449000,-363.5349796,0.00028973,2]
[425120626,1781531449000,-150.0,0.00028932,30]
[425120627,1781531449000,-150.0,0.00028954,30]
[425120644,1781531449000,-500.0,0.00029,2]
[425120634,1781531449000,-660.97269017,0.00028973,2]
[425120637,1781531449000,-527.65321544,0.00028973,2]
[425120636,1781531449000,-959.36948262,0.00028973,2]
[425120633,1781531449000,-1201.76852759,0.00028973,2]
[425120643,1781531449000,-10000.0,0.00029,2]
[425120642,1781531449000,-150.0,0.00028974,30]
[425120618,1781531449000,-186.5526394,0.00028836,30]
[425120638,1781531449000,-291.77024259,0.00028973,14]
[425120631,1781531449000,-335.40366317,0.00028973,2]
[425120617,1781531449000,-589.34951672,0.00028831,2]
[425120597,1781531449000,-153.69418748,0.00028707,2]
[425120615,1781531449000,-2000.0,0.00028829,30]
[425120641,1781531449000,-238.32440136,0.00028973,14]
[425120592,1781531449000,-186.5526394,0.00028624,30]
[425120593,1781531449000,-186.5526394,0.00028654,30]
[425120595,1781531449000,-150.0,0.00028667,30]
[425120594,1781531449000,-150.0,0.00028657,30]
[425120596,1781531449000,-186.5526394,0.00028684,30]
[425120599,1781531449000,-150.0,0.00028724,30]
[425120600,1781531449000,-150.0,0.00028736,30]
[425120602,1781531449000,-150.0,0.00028755,30]
[425120605,1781531449000,-164.765,0.00028767,30]
[425120607,1781531449000,-585.829384,0.000288,7]
[425120601,1781531449000,-186.5526394,0.00028745,30]
[425120598,1781531449000,-186.5526394,0.00028715,30]
[425120606,1781531449000,-186.5526394,0.00028776,30]
[425120603,1781531449000,-2153.59,0.00028767,2]
[425120604,1781531449000,-191.6975,0.00028767,30]
[425120609,1781531449000,-585.829384,0.000288,14]
[425120619,1781531449000,-150.0,0.00028844,30]
[425120608,1781531449000,-591.829384,0.000288,7]
[425120610,1781531449000,-591.829384,0.000288,14]
[425120611,1781531449000,-150.0,0.00028809,30]
[425120612,1781531449000,-150.0,0.00028816,30]
[425120613,1781531449000,-2000.0,0.00028829,30]
[425120614,1781531449000,-2000.0,0.00028829,30]
[425120639,1781531449000,-433.31709338,0.00028973,14]
[425120640,1781531449000,-188.39873625,0.00028973,2]
[425120645,1781531449000,-500.0,0.00029,2]
[425120671,1781531449000,-2249.45615,0.00029,2]
[425120676,1781531449000,-150.0,0.0002902,30]
[425120673,1781531449000,-2249.45615,0.00029,2]
[425120677,1781531449000,-1169.18,0.00029051,5]
[425120678,1781531449000,-150.0,0.00029053,30]
[425120679,1781531449000,-153.0,0.00029063,30]
[425120680,1781531449000,-3355.0,0.00029063,30]
[425120681,1781531449000,-165.0,0.00029065,30]
[425120683,1781531449000,-527.0,0.00029065,30]
[425120682,1781531449000,-156.0,0.00029065,30]
[425120688,1781531449000,-197.0,0.00029065,30]
[425120684,1781531449000,-164.0,0.00029065,30]
[425120689,1781531449000,-155.0,0.00029065,30]
[425120687,1781531449000,-210.0,0.00029065,30]
[425120686,1781531449000,-678.0,0.00029065,30]
[425120691,1781531449000,-267.0,0.00029066,30]
[425120692,1781531449000,-150.0,0.00029079,30]
[425120696,1781531449000,-403.94,0.000291,2]
[425120690,1781531449000,-220.0,0.00029066,30]
[425120694,1781531449000,-414.0,0.00029094,10]
[425120697,1781531449000,-601.46,0.000291,2]
[425120695,1781531449000,-601.46,0.000291,2]
[425120693,1781531449000,-150.0,0.00029079,30]
[425120670,1781531449000,-2249.45615,0.00029,2]
[425120672,1781531449000,-2249.45615,0.00029,2]
[425120685,1781531449000,-186.0,0.00029065,30]
[425120674,1781531449000,-2249.45618,0.00029,2]
[425120650,1781531449000,-500.0,0.00029,2]
[425120675,1781531449000,-380.9,0.00029014,2]
[425120655,1781531449000,-500.0,0.00029,2]
[425120646,1781531449000,-500.0,0.00029,2]
[425120654,1781531449000,-500.0,0.00029,2]
[425120649,1781531449000,-500.0,0.00029,2]
[425120648,1781531449000,-500.0,0.00029,2]
[425120647,1781531449000,-251.58057183,0.00029,2]
[425120656,1781531449000,-248.82,0.00029,2]
[425120653,1781531449000,-500.0,0.00029,2]
[425120652,1781531449000,-500.0,0.00029,2]
[425120658,1781531449000,-500.0,0.00029,2]
[425120651,1781531449000,-500.0,0.00029,2]
[425120659,1781531449000,-200.0,0.00029,2]
[425120667,1781531449000,-12529.93684114,0.00029,2]
[425120663,1781531449000,-500.0,0.00029,2]
[425120665,1781531449000,-588.829384,0.00029,7]
[425120669,1781531449000,-588.829384,0.00029,14]
[425120664,1781531449000,-1229.87,0.00029,7]
[425120666,1781531449000,-500.0,0.00029,2]
[425120661,1781531449000,-500.0,0.00029,2]
[425120660,1781531449000,-500.0,0.00029,2]
[425120657,1781531449000,-500.0,0.00029,2]
[425120668,1781531449000,-348.14337737,0.00029,2]
[425120662,1781531449000,-500.0,0.00029,2]
[425120751,1781531450000,-2110.0,0.000295,2]
[425120735,1781531450000,-250.0,0.00029364,13]
[425120736,1781531450000,-150.0,0.00029372,2]
[425120732,1781531450000,-159.08123096,0.0002934,7]
[425120731,1781531450000,-400.07609266,0.0002934,7]
[425120730,1781531450000,-591.78486378,0.0002934,5]
[425120733,1781531450000,-512.73396548,0.00029348,2]
[425120729,1781531450000,-456.57572358,0.0002934,7]
[425120738,1781531450000,-832.24,0.000294,7]
[425120728,1781531450000,-403.26553167,0.0002934,7]
[425120740,1781531450000,-1162.37,0.00029415,5]
[425120734,1781531450000,-467.57931691,0.00029353,7]
[425120739,1781531450000,-1229.87,0.000294,7]
[425120762,1781531450000,-919.39575418,0.0002958,14]
[425120750,1781531450000,-1297.12,0.00029488,2]
[425120748,1781531450000,-527.65321544,0.00029435,7]
[425120742,1781531450000,-559.00610529,0.00029435,7]
[425120743,1781531450000,-407.37569923,0.00029435,7]
[425120744,1781531450000,-1502.21065948,0.00029435,7]
[425120745,1781531450000,-826.21586272,0.00029435,7]
[425120746,1781531450000,-363.5349796,0.00029435,7]
[425120749,1781531450000,-150.0,0.00029463,30]
[425120747,1781531450000,-1199.21185327,0.00029435,7]
[425120753,1781531450000,-34263.84780501,0.00029502,10]
[425120761,1781531450000,-348.38768878,0.0002958,14]
[425120760,1781531450000,-633.43216142,0.0002958,14]
[425120726,1781531450000,-417.02019546,0.0002934,7]
[425120741,1781531450000,-401.94866761,0.00029435,7]
[425120737,1781531450000,-150.0,0.00029374,30]
[425120702,1781531450000,-205.22223056,0.0002913,20]
[425120724,1781531450000,-469.85197876,0.0002934,7]
[425120701,1781531450000,-300.8940045,0.0002913,7]
[425120698,1781531450000,-6447.04973173,0.000291,2]
[425120700,1781531450000,-5010.54194764,0.0002913,2]
[425120699,1781531450000,-150.0,0.00029109,30]
[425120754,1781531450000,-1169.18,0.00029517,5]
[425120712,1781531450000,-591.829384,0.000293,7]
[425120713,1781531450000,-585.829384,0.000293,14]
[425120711,1781531450000,-585.829384,0.000293,7]
[425120704,1781531450000,-2000.0,0.0002914,7]
[425120709,1781531450000,-153.69418748,0.00029255,2]
[425120703,1781531450000,-1297.12,0.00029136,7]
[425120705,1781531450000,-1939.56,0.00029159,2]
[425120707,1781531450000,-2142.9,0.000292,30]
[425120706,1781531450000,-150.0,0.00029197,30]
[425120708,1781531450000,-1297.12,0.00029244,2]
[425120710,1781531450000,-150.0,0.00029286,30]
[425120714,1781531450000,-591.829384,0.000293,14]
[425120722,1781531450000,-152.68505853,0.00029334,7]
[425120720,1781531450000,-485.94568269,0.00029334,7]
[425120723,1781531450000,-307.16387448,0.00029334,7]
[425120715,1781531450000,-247.65,0.00029315,2]
[425120716,1781531450000,-2153.59,0.00029315,2]
[425120718,1781531450000,-150.0,0.0002933,30]
[425120717,1781531450000,-362.30807184,0.00029315,2]
[425120721,1781531450000,-212.18288063,0.00029334,7]
[425120719,1781531450000,-237.63642623,0.00029334,2]
[425120725,1781531450000,-588.74621669,0.0002934,7]
[425120727,1781531450000,-376.09903219,0.0002934,7]
[425120763,1781531450000,-505.6676648,0.0002958,14]
[425120805,1781531450000,-564.2335,0.00029863,7]
[425120755,1781531450000,-150.0,0.00029551,30]
[425120789,1781531450000,-564.2335,0.00029863,7]
[425120798,1781531450000,-564.2335,0.00029863,7]
[425120791,1781531450000,-564.2335,0.00029863,7]
[425120793,1781531450000,-564.2335,0.00029863,7]
[425120790,1781531450000,-564.2335,0.00029863,7]